Workbook

Sheet Square
B1: Volume of an Open Box Problem
B3: This DIGMath module lets you investigate
B4: the calculus problem of finding
B5: the dimensions of the largest open box
B6: that can be formed by snipping away
B7: squares from from the four corners of a
C8: square sheet of cardboard.
A11: What is the length L of the cardboard?
B12: (6 - 36 inches) | E12: Length L = | F12: =D13 -> 24
D13: 24
A16: The formula for the volume function V = | E16: x(L - 2x)2
L28: Select the amount x to be snipped: x0 = | P28: =O30*dx -> 10.32 | Q28: inches
O30: 86 | P30: =Sheet2!H7+O30*(Sheet2!H8-Sheet2!H7)/100 -> 10.32
M32: The volume of this box is | P32: =x0*(L-2*x0)^2 -> 116.5 | Q32: cubic inches
M34: The value of the derivative is y' = | P34: =Sheet2!I30 -> -127.4112
A37: Click each item below for suggestions and investigations
C38: Item 1
C39: Item 2
C40: Item 3
C41: Item 4
A45: To access/download all the DIGMath Apps for Calculus
A46: Click this link: | C46: DIGMath for Calculus
A48: Created by: Sheldon P. Gordon
A49: Farmingdale State College
A50: Development of this module was supported by the
A51: NSF's Division of Undergraduate Education
A52: under grants DUE-0310123 and DUE-0442160.

Sheet Rectangular
B1: Volume of an Open Box Problem
B3: This DIGMath module lets you investigate
B4: the calculus problem of finding
B5: the dimensions of the largest open box
B6: that can be formed by snipping away
B7: squares from from the four corners of a
B8: rectangular sheet of cardboard.
A11: What is the length L of the cardboard?
B12: (6 - 36 inches) | E12: Length L = | F12: =D13 -> 20
D13: 20
A15: What is the width W of the cardboard?
B16: (6 - 36 inches) | E16: Width W = | F16: =D17 -> 28
D17: 28
A19: The formula for the volume function V = | E19: x(L - 2x)(W - 2x)
I26: Select the amount x to be snipped: x0 = | M26: =L28*dxx -> 6.1 | N26: inches
L28: 61 | M28: =Sheet2!H7+L28*(Sheet2!H8-Sheet2!H7)/100 -> 7.32
J30: The volume of this box is | M30: =xx0*(LL-2*xx0)*(W-2*xx0) -> 751.8 | N30: cubic inches
I32: The value of the derivative is y' = | M32: =Sheet2!S30 -> -164.68
A39: Click each item below for suggestions and investigations
C40: Item 1
C41: Item 2
C42: Item 3
C43: Item 4
A47: To access/download all the DIGMath Apps for Calculus
A48: Click this link: | C48: DIGMath for Calculus
A50: Created by: Sheldon P. Gordon
A51: Farmingdale State College
A52: Development of this module was supported by the
A53: NSF's Division of Undergraduate Education
A54: under grants DUE-0310123 and DUE-0442160.

Sheet Sheet2
B1: x | C1: f(x) | D1: f'(x) | G1: xl= | H1: 0 | I1: =LOOKUP(Square!P30,Sheet2!B3:B1002,Sheet2!C3:C1002)+LOOKUP(Square!P30,Sheet2!B3:B1002,Sheet2!D3:D1002)*(H1-Square!P30) -> 1431.392256 | J1: "=yl | M1: xx | N1: f(x) | O1: f'(x) | R1: xl= | S1: 0 | T1: =LOOKUP(Square!AA18,Sheet2!M3:M1002,Sheet2!N3:N1002)+LOOKUP(Square!AA18,Sheet2!M3:M1002,Sheet2!O3:O1002)*(S1-Square!AA18) -> 0 | U1: "=yl
G2: xr= | H2: =L/2 -> 12 | I2: =LOOKUP(Square!P30,Sheet2!B3:B1003,Sheet2!C3:C1003)+LOOKUP(Square!P30,Sheet2!B3:B1003,Sheet2!D3:D1003)*(H2-Square!P30) -> -97.542144 | J2: "=yR | R2: xr= | S2: =MIN(LL/2,W/2) -> 10 | T2: =LOOKUP(Square!AA18,Sheet2!M3:M1003,Sheet2!N3:N1003)+LOOKUP(Square!AA18,Sheet2!M3:M1003,Sheet2!O3:O1003)*(S2-Square!AA18) -> 5600 | U2: "=yR
A3: 0 | B3: 0.0 | C3: =x*(L-2*x)^2 -> 0 | D3: =(L-2*x)*(L-6*x) -> 576 | L3: 0 | M3: 0.0 | N3: =xx*(LL-2*xx)*(W-2*xx) -> 0 | O3: =(LL-2*xx)*(W-2*xx)-2*xx*(W-2*xx)-2*xx*(LL-2*xx) -> 560
A4: 1 | B4: =B3+dx -> 0.1 | C4: 67.744512 | D4: 553.1328 | L4: 1 | M4: =M3+dxx -> 0.1 | N4: 55.044 | O4: 540.92
A5: 2 | B5: 0.2 | C5: 132.765696 | D5: 530.6112 | G5: delta x = | H5: =(xMax-xMin)/100 -> 0.12 | L5: 2 | M5: 0.2 | N5: 108.192 | O5: 522.08 | R5: delta x = | S5: =(S2-S1)/100 -> 0.1
A6: 3 | B6: 0.4 | C6: 195.105024 | D6: 508.4352 | L6: 3 | M6: 0.3 | N6: 159.468 | O6: 503.48
A7: 4 | B7: 0.5 | C7: 254.803968 | D7: 486.6048 | G7: xMin = | H7: 0 | I7: =C3 -> 0 | L7: 4 | M7: 0.4 | N7: 208.896 | O7: 485.12 | R7: xMin = | S7: 0 | T7: =N3 -> 0
A8: 5 | B8: 0.6 | C8: 311.904 | D8: 465.12 | G8: xMax = | H8: =L/2 -> 12 | I8: =C103 -> 1.832681655e-26 | L8: 5 | M8: 0.5 | N8: 256.5 | O8: 467 | R8: xMax = | S8: =L/2 -> 12 | T8: =N103 -> 3.126388037e-12
A9: 6 | B9: 0.7 | C9: 366.446592 | D9: 443.9808 | L9: 6 | M9: 0.6 | N9: 302.304 | O9: 449.12
A10: 7 | B10: 0.8 | C10: 418.473216 | D10: 423.1872 | L10: 7 | M10: 0.7 | N10: 346.332 | O10: 431.48
A11: 8 | B11: 1.0 | C11: 468.025344 | D11: 402.7392 | G11: Point | L11: 8 | M11: 0.8 | N11: 388.608 | O11: 414.08 | R11: Point
A12: 9 | B12: 1.1 | C12: 515.144448 | D12: 382.6368 | G12: =x0 -> 10.32 | H12: 0 | L12: 9 | M12: 0.9 | N12: 429.156 | O12: 396.92 | R12: =x0 -> 10.32 | S12: 0
A13: 10 | B13: 1.2 | C13: 559.872 | D13: 362.88 | L13: 10 | M13: 1.0 | N13: 468 | O13: 380
A14: 11 | B14: 1.3 | C14: 602.249472 | D14: 343.4688 | G14: Horizontal Line | L14: 11 | M14: 1.1 | N14: 505.164 | O14: 363.32 | R14: Horizontal Line
A15: 12 | B15: 1.4 | C15: 642.318336 | D15: 324.4032 | G15: 0 | H15: 0 | L15: 12 | M15: 1.2 | N15: 540.672 | O15: 346.88 | R15: 0 | S15: 0
A16: 13 | B16: 1.6 | C16: 680.120064 | D16: 305.6832 | G16: =G12 -> 10.32 | H16: 0 | L16: 13 | M16: 1.3 | N16: 574.548 | O16: 330.68 | R16: =R12 -> 10.32 | S16: 0
A17: 14 | B17: 1.7 | C17: 715.696128 | D17: 287.3088 | L17: 14 | M17: 1.4 | N17: 606.816 | O17: 314.72
A18: 15 | B18: 1.8 | C18: 749.088 | D18: 269.28 | G18: Diagnonal Line | L18: 15 | M18: 1.5 | N18: 637.5 | O18: 299 | R18: Diagnonal Line
A19: 16 | B19: 1.9 | C19: 780.337152 | D19: 251.5968 | G19: 0 | H19: 200 | L19: 16 | M19: 1.6 | N19: 666.624 | O19: 283.52 | R19: 0 | S19: 200
A20: 17 | B20: 2.0 | C20: 809.485056 | D20: 234.2592 | G20: 997 | H20: 0 | L20: 17 | M20: 1.7 | N20: 694.212 | O20: 268.28 | R20: 997 | S20: 0
A21: 18 | B21: 2.2 | C21: 836.573184 | D21: 217.2672 | L21: 18 | M21: 1.8 | N21: 720.288 | O21: 253.28
A22: 19 | B22: 2.3 | C22: 861.643008 | D22: 200.6208 | L22: 19 | M22: 1.9 | N22: 744.876 | O22: 238.52
A23: 20 | B23: 2.4 | C23: 884.736 | D23: 184.32 | G23: Point on curve | L23: 20 | M23: 2.0 | N23: 768 | O23: 224 | R23: Point on curve
A24: 21 | B24: 2.5 | C24: 905.893632 | D24: 168.3648 | G24: x= | H24: =G12*H5 -> 1.2384 | L24: 21 | M24: 2.1 | N24: 789.684 | O24: 209.72 | R24: x= | S24: =R12*S5 -> 1.032
A25: 22 | B25: 2.6 | C25: 925.157376 | D25: 152.7552 | F25: x0 = | G25: =x0 -> 10.32 | H25: =LOOKUP(x0,B3:B104,C3:C104) -> 116.508672 | L25: 22 | M25: 2.2 | N25: 809.952 | O25: 195.68 | Q25: x0 = | R25: =xx0 -> 6.1 | S25: =LOOKUP(xx0,M3:M104,N3:N104) -> 751.764
A26: 23 | B26: 2.8 | C26: 942.568704 | D26: 137.4912 | F26: y0 = | G26: =H25 -> 116.508672 | L26: 23 | M26: 2.3 | N26: 828.828 | O26: 181.88 | Q26: y0 = | R26: =S25 -> 751.764
A27: 24 | B27: 2.9 | C27: 958.169088 | D27: 122.5728 | L27: 24 | M27: 2.4 | N27: 846.336 | O27: 168.32
A28: 25 | B28: 3.0 | C28: 972 | D28: 108 | G28: =(x0+2*h)*y0 -> 1202.369495 | L28: 25 | M28: 2.5 | N28: 862.5 | O28: 155 | R28: =(x0+2*h)*y0 -> 1202.369495
A29: 26 | B29: 3.1 | C29: 984.102912 | D29: 93.7728 | L29: 26 | M29: 2.6 | N29: 877.344 | O29: 141.92
A30: 27 | B30: 3.2 | C30: 994.519296 | D30: 79.8912 | G30: =x0 -> 10.32 | H30: =LOOKUP(x0,B3:B104,C3:C104) -> 116.508672 | I30: =LOOKUP(x0,B3:B104,D3:D104) -> -127.4112 | L30: 27 | M30: 2.7 | N30: 890.892 | O30: 129.08 | Q30: =xx0 -> 6.1 | R30: =LOOKUP(xx0,M3:M104,N3:N104) -> 751.764 | S30: =LOOKUP(xx0,M3:M104,O3:O104) -> -164.68
A31: 28 | B31: 3.4 | C31: 1003.290624 | D31: 66.3552 | G31: =x0 -> 10.32 | H31: 0 | I31: 0 | L31: 28 | M31: 2.8 | N31: 903.168 | O31: 116.48 | Q31: =xx0 -> 6.1 | R31: 0 | S31: 0
A32: 29 | B32: 3.5 | C32: 1010.458368 | D32: 53.1648 | L32: 29 | M32: 2.9 | N32: 914.196 | O32: 104.12
A33: 30 | B33: 3.6 | C33: 1016.064 | D33: 40.32 | L33: 30 | M33: 3.0 | N33: 924 | O33: 92
A34: 31 | B34: 3.7 | C34: 1020.148992 | D34: 27.8208 | L34: 31 | M34: 3.1 | N34: 932.604 | O34: 80.12
A35: 32 | B35: 3.8 | C35: =x*(L-2*x)^2 -> 1022.754816 | D35: =(L-2*x)*(L-6*x) -> 15.6672 | L35: 32 | M35: 3.2 | N35: =xx*(LL-2*xx)*(W-2*xx) -> 940.032 | O35: =(LL-2*xx)*(W-2*xx)-2*xx*(W-2*xx)-2*xx*(LL-2*xx) -> 68.48
A36: 33 | B36: =B35+dx -> 4.0 | C36: 1023.922944 | D36: 3.8592 | L36: 33 | M36: =M35+dxx -> 3.3 | N36: 946.308 | O36: 57.08
A37: 34 | B37: 4.1 | C37: 1023.694848 | D37: -7.6032 | L37: 34 | M37: 3.4 | N37: 951.456 | O37: 45.92
A38: 35 | B38: 4.2 | C38: 1022.112 | D38: -18.72 | L38: 35 | M38: 3.5 | N38: 955.5 | O38: 35
A39: 36 | B39: 4.3 | C39: 1019.215872 | D39: -29.4912 | L39: 36 | M39: 3.6 | N39: 958.464 | O39: 24.32
A40: 37 | B40: 4.4 | C40: 1015.047936 | D40: -39.9168 | L40: 37 | M40: 3.7 | N40: 960.372 | O40: 13.88
A41: 38 | B41: 4.6 | C41: 1009.649664 | D41: -49.9968 | L41: 38 | M41: 3.8 | N41: 961.248 | O41: 3.68
A42: 39 | B42: 4.7 | C42: 1003.062528 | D42: -59.7312 | L42: 39 | M42: 3.9 | N42: 961.116 | O42: -6.28
A43: 40 | B43: 4.8 | C43: 995.328 | D43: -69.12 | L43: 40 | M43: 4.0 | N43: 960 | O43: -16
A44: 41 | B44: 4.9 | C44: 986.487552 | D44: -78.1632 | L44: 41 | M44: 4.1 | N44: 957.924 | O44: -25.48
A45: 42 | B45: 5.0 | C45: 976.582656 | D45: -86.8608 | L45: 42 | M45: 4.2 | N45: 954.912 | O45: -34.72
A46: 43 | B46: 5.2 | C46: 965.654784 | D46: -95.2128 | L46: 43 | M46: 4.3 | N46: 950.988 | O46: -43.72
A47: 44 | B47: 5.3 | C47: 953.745408 | D47: -103.2192 | L47: 44 | M47: 4.4 | N47: 946.176 | O47: -52.48
A48: 45 | B48: 5.4 | C48: 940.896 | D48: -110.88 | L48: 45 | M48: 4.5 | N48: 940.5 | O48: -61
A49: 46 | B49: 5.5 | C49: 927.148032 | D49: -118.1952 | L49: 46 | M49: 4.6 | N49: 933.984 | O49: -69.28
A50: 47 | B50: 5.6 | C50: 912.542976 | D50: -125.1648 | L50: 47 | M50: 4.7 | N50: 926.652 | O50: -77.32
A51: 48 | B51: 5.8 | C51: 897.122304 | D51: -131.7888 | L51: 48 | M51: 4.8 | N51: 918.528 | O51: -85.12
A52: 49 | B52: 5.9 | C52: 880.927488 | D52: -138.0672 | L52: 49 | M52: 4.9 | N52: 909.636 | O52: -92.68
A53: 50 | B53: 6.0 | C53: 864 | D53: -144 | L53: 50 | M53: 5.0 | N53: 900 | O53: -100
A54: 51 | B54: 6.1 | C54: 846.381312 | D54: -149.5872 | L54: 51 | M54: 5.1 | N54: 889.644 | O54: -107.08
A55: 52 | B55: 6.2 | C55: 828.112896 | D55: -154.8288 | L55: 52 | M55: 5.2 | N55: 878.592 | O55: -113.92
A56: 53 | B56: 6.4 | C56: 809.236224 | D56: -159.7248 | L56: 53 | M56: 5.3 | N56: 866.868 | O56: -120.52
A57: 54 | B57: 6.5 | C57: 789.792768 | D57: -164.2752 | L57: 54 | M57: 5.4 | N57: 854.496 | O57: -126.88
A58: 55 | B58: 6.6 | C58: 769.824 | D58: -168.48 | L58: 55 | M58: 5.5 | N58: 841.5 | O58: -133
A59: 56 | B59: 6.7 | C59: 749.371392 | D59: -172.3392 | L59: 56 | M59: 5.6 | N59: 827.904 | O59: -138.88
A60: 57 | B60: 6.8 | C60: 728.476416 | D60: -175.8528 | L60: 57 | M60: 5.7 | N60: 813.732 | O60: -144.52
A61: 58 | B61: 7.0 | C61: 707.180544 | D61: -179.0208 | L61: 58 | M61: 5.8 | N61: 799.008 | O61: -149.92
A62: 59 | B62: 7.1 | C62: 685.525248 | D62: -181.8432 | L62: 59 | M62: 5.9 | N62: 783.756 | O62: -155.08
A63: 60 | B63: 7.2 | C63: 663.552 | D63: -184.32 | L63: 60 | M63: 6.0 | N63: 768 | O63: -160
A64: 61 | B64: 7.3 | C64: 641.302272 | D64: -186.4512 | L64: 61 | M64: 6.1 | N64: 751.764 | O64: -164.68
A65: 62 | B65: 7.4 | C65: 618.817536 | D65: -188.2368 | L65: 62 | M65: 6.2 | N65: 735.072 | O65: -169.12
A66: 63 | B66: 7.6 | C66: 596.139264 | D66: -189.6768 | L66: 63 | M66: 6.3 | N66: 717.948 | O66: -173.32
A67: 64 | B67: 7.7 | C67: =x*(L-2*x)^2 -> 573.308928 | D67: =(L-2*x)*(L-6*x) -> -190.7712 | L67: 64 | M67: 6.4 | N67: =xx*(LL-2*xx)*(W-2*xx) -> 700.416 | O67: =(LL-2*xx)*(W-2*xx)-2*xx*(W-2*xx)-2*xx*(LL-2*xx) -> -177.28
A68: 65 | B68: =B67+dx -> 7.8 | C68: 550.368 | D68: -191.52 | L68: 65 | M68: =M67+dxx -> 6.5 | N68: 682.5 | O68: -181
A69: 66 | B69: 7.9 | C69: 527.357952 | D69: -191.9232 | L69: 66 | M69: 6.6 | N69: 664.224 | O69: -184.48
A70: 67 | B70: 8.0 | C70: 504.320256 | D70: -191.9808 | L70: 67 | M70: 6.7 | N70: 645.612 | O70: -187.72
A71: 68 | B71: 8.2 | C71: 481.296384 | D71: -191.6928 | L71: 68 | M71: 6.8 | N71: 626.688 | O71: -190.72
A72: 69 | B72: 8.3 | C72: 458.327808 | D72: -191.0592 | L72: 69 | M72: 6.9 | N72: 607.476 | O72: -193.48
A73: 70 | B73: 8.4 | C73: 435.456 | D73: -190.08 | L73: 70 | M73: 7.0 | N73: 588 | O73: -196
A74: 71 | B74: 8.5 | C74: 412.722432 | D74: -188.7552 | L74: 71 | M74: 7.1 | N74: 568.284 | O74: -198.28
A75: 72 | B75: 8.6 | C75: 390.168576 | D75: -187.0848 | L75: 72 | M75: 7.2 | N75: 548.352 | O75: -200.32
A76: 73 | B76: 8.8 | C76: 367.835904 | D76: -185.0688 | L76: 73 | M76: 7.3 | N76: 528.228 | O76: -202.12
A77: 74 | B77: 8.9 | C77: 345.765888 | D77: -182.7072 | L77: 74 | M77: 7.4 | N77: 507.936 | O77: -203.68
A78: 75 | B78: 9.0 | C78: 324 | D78: -180 | L78: 75 | M78: 7.5 | N78: 487.5 | O78: -205
A79: 76 | B79: 9.1 | C79: 302.579712 | D79: -176.9472 | L79: 76 | M79: 7.6 | N79: 466.944 | O79: -206.08
A80: 77 | B80: 9.2 | C80: 281.546496 | D80: -173.5488 | L80: 77 | M80: 7.7 | N80: 446.292 | O80: -206.92
A81: 78 | B81: 9.4 | C81: 260.941824 | D81: -169.8048 | L81: 78 | M81: 7.8 | N81: 425.568 | O81: -207.52
A82: 79 | B82: 9.5 | C82: 240.807168 | D82: -165.7152 | L82: 79 | M82: 7.9 | N82: 404.796 | O82: -207.88
A83: 80 | B83: 9.6 | C83: 221.184 | D83: -161.28 | L83: 80 | M83: 8.0 | N83: 384 | O83: -208
A84: 81 | B84: 9.7 | C84: 202.113792 | D84: -156.4992 | L84: 81 | M84: 8.1 | N84: 363.204 | O84: -207.88
A85: 82 | B85: 9.8 | C85: 183.638016 | D85: -151.3728 | L85: 82 | M85: 8.2 | N85: 342.432 | O85: -207.52
A86: 83 | B86: 10.0 | C86: 165.798144 | D86: -145.9008 | L86: 83 | M86: 8.3 | N86: 321.708 | O86: -206.92
A87: 84 | B87: 10.1 | C87: 148.635648 | D87: -140.0832 | L87: 84 | M87: 8.4 | N87: 301.056 | O87: -206.08
A88: 85 | B88: 10.2 | C88: 132.192 | D88: -133.92 | L88: 85 | M88: 8.5 | N88: 280.5 | O88: -205
A89: 86 | B89: 10.3 | C89: 116.508672 | D89: -127.4112 | L89: 86 | M89: 8.6 | N89: 260.064 | O89: -203.68
A90: 87 | B90: 10.4 | C90: 101.627136 | D90: -120.5568 | L90: 87 | M90: 8.7 | N90: 239.772 | O90: -202.12
A91: 88 | B91: 10.6 | C91: 87.588864 | D91: -113.3568 | L91: 88 | M91: 8.8 | N91: 219.648 | O91: -200.32
A92: 89 | B92: 10.7 | C92: 74.435328 | D92: -105.8112 | L92: 89 | M92: 8.9 | N92: 199.716 | O92: -198.28
A93: 90 | B93: 10.8 | C93: 62.208 | D93: -97.92 | L93: 90 | M93: 9.0 | N93: 180 | O93: -196
A94: 91 | B94: 10.9 | C94: 50.948352 | D94: -89.6832 | L94: 91 | M94: 9.1 | N94: 160.524 | O94: -193.48
A95: 92 | B95: 11.0 | C95: 40.697856 | D95: -81.1008 | L95: 92 | M95: 9.2 | N95: 141.312 | O95: -190.72
A96: 93 | B96: 11.2 | C96: 31.497984 | D96: -72.1728 | L96: 93 | M96: 9.3 | N96: 122.388 | O96: -187.72
A97: 94 | B97: 11.3 | C97: 23.390208 | D97: -62.8992 | L97: 94 | M97: 9.4 | N97: 103.776 | O97: -184.48
A98: 95 | B98: 11.4 | C98: 16.416 | D98: -53.28 | L98: 95 | M98: 9.5 | N98: 85.5 | O98: -181
A99: 96 | B99: 11.5 | C99: =x*(L-2*x)^2 -> 10.616832 | D99: =(L-2*x)*(L-6*x) -> -43.3152 | L99: 96 | M99: 9.6 | N99: =xx*(LL-2*xx)*(W-2*xx) -> 67.584 | O99: =(LL-2*xx)*(W-2*xx)-2*xx*(W-2*xx)-2*xx*(LL-2*xx) -> -177.28
A100: 97 | B100: =B99+dx -> 11.6 | C100: 6.034176 | D100: -33.0048 | L100: 97 | M100: =M99+dxx -> 9.7 | N100: 50.052 | O100: -173.32
A101: 98 | B101: 11.8 | C101: 2.709504 | D101: -22.3488 | L101: 98 | M101: 9.8 | N101: 32.928 | O101: -169.12
A102: 99 | B102: 11.9 | C102: 0.684288 | D102: -11.3472 | L102: 99 | M102: 9.9 | N102: 16.236 | O102: -164.68
A103: 100 | B103: 12.0 | C103: 1.832681655e-26 | D103: -1.875832822e-12 | L103: 100 | M103: 10.0 | N103: 3.126388037e-12 | O103: -160
A104: 101 | B104: 12.1 | C104: 0.698112 | D104: 11.6928 | L104: 101 | M104: 10.1 | N104: -15.756 | O104: -155.08
A105: 102 | B105: 12.2 | C105: 2.820096 | D105: 23.7312 | L105: 102 | M105: 10.2 | N105: -31.008 | O105: -149.92
A106: 103 | B106: 12.4 | C106: 6.407424 | D106: 36.1152 | L106: 103 | M106: 10.3 | N106: -45.732 | O106: -144.52
A107: 104 | B107: 12.5 | C107: 11.501568 | D107: 48.8448 | L107: 104 | M107: 10.4 | N107: -59.904 | O107: -138.88
A108: 105 | B108: 12.6 | C108: 18.144 | D108: 61.92 | L108: 105 | M108: 10.5 | N108: -73.5 | O108: -133
A109: 106 | B109: 12.7 | C109: 26.376192 | D109: 75.3408 | L109: 106 | M109: 10.6 | N109: -86.496 | O109: -126.88
A110: 107 | B110: 12.8 | C110: 36.239616 | D110: 89.1072 | L110: 107 | M110: 10.7 | N110: -98.868 | O110: -120.52
A111: 108 | B111: 13.0 | C111: 47.775744 | D111: 103.2192 | L111: 108 | M111: 10.8 | N111: -110.592 | O111: -113.92
